[Event "Late-Titled-Tuesday-Blitz-February-13-2024"]
[Site "Chess.com"]
[Date "2024.02.13"]
[Round "6"]
[White "Bugcrusher"]
[Black "Hilary46"]
[Result "0-1"]
[WhiteElo "2469"]
[BlackElo "2621"]
[TimeControl "180+1"]
[EndTime "15:03:39 PST"]
[Termination "Hilary46 won by resignation"]

1. d4 {[%clk 0:02:59.1]} 1... Nf6 {[%clk 0:02:58.9]} 2. c4 {[%clk 0:02:58.6]}
2... e6 {[%clk 0:02:59.2]} 3. Nc3 {[%clk 0:02:57.6]} 3... Bb4 {[%clk 0:02:56.3]}
4. a3 {[%clk 0:02:57.7]} 4... Bxc3+ {[%clk 0:02:56]} 5. bxc3 {[%clk 0:02:58.6]}
5... c5 {[%clk 0:02:56]} 6. f3 {[%clk 0:02:55]} 6... d6 {[%clk 0:02:49.9]} 7. e4
{[%clk 0:02:54.7]} 7... e5 {[%clk 0:02:49.1]} 8. Bg5 {[%clk 0:02:50.7]} 8... Nc6
{[%clk 0:02:43.8]} 9. Ne2 {[%clk 0:02:47.9]} 9... h6 {[%clk 0:02:41.1]} 10. Bh4
{[%clk 0:02:47.2]} 10... O-O {[%clk 0:02:39.8]} 11. g4 {[%clk 0:02:45.6]} 11...
cxd4 {[%clk 0:02:30.8]} 12. cxd4 {[%clk 0:02:44.9]} 12... exd4 {[%clk
0:02:26.3]} 13. Nxd4 {[%clk 0:02:43.4]} 13... Qa5+ {[%clk 0:02:24.7]} 14. Ke2
{[%clk 0:02:25]} 14... Nxe4 {[%clk 0:02:01.5]} 15. fxe4 {[%clk 0:02:11.3]} 15...
Bxg4+ {[%clk 0:01:59]} 16. Nf3 {[%clk 0:02:11.3]} 16... Qh5 {[%clk 0:01:58.7]}
17. Bg2 {[%clk 0:02:06.7]} 17... Qxh4 {[%clk 0:01:57.6]} 18. Qxd6 {[%clk
0:02:06.5]} 18... Bxf3+ {[%clk 0:01:51.4]} 19. Bxf3 {[%clk 0:02:05.7]} 19...
Rad8 {[%clk 0:01:51.7]} 20. Qg3 {[%clk 0:02:05.2]} 20... Qf6 {[%clk 0:01:50]}
21. Rad1 {[%clk 0:02:00.6]} 21... Qb2+ {[%clk 0:01:48]} 22. Ke3 {[%clk
0:01:59.3]} 22... Ne5 {[%clk 0:01:35.1]} 23. Rhg1 {[%clk 0:01:55.1]} 23... Nxc4+
{[%clk 0:01:34.4]} 24. Kf4 {[%clk 0:01:53.2]} 24... Qe5+ {[%clk 0:01:30.9]} 25.
Kg4 {[%clk 0:01:53.3]} 25... Ne3+ {[%clk 0:01:31.1]} 26. Kh3 {[%clk 0:01:52.7]}
26... Qxg3+ {[%clk 0:01:31.4]} 0-1

[Event "Late-Titled-Tuesday-Blitz-February-13-2024"]
[Site "Chess.com"]
[Date "2024.02.13"]
[Round "6"]
[White "manitodeplomo"]
[Black "kibromNNN"]
[Result "1-0"]
[WhiteElo "2640"]
[BlackElo "1817"]
[TimeControl "180+1"]
[EndTime "15:04:06 PST"]
[Termination "manitodeplomo won by resignation"]

1. d4 {[%clk 0:02:55]} 1... Nf6 {[%clk 0:02:58]} 2. c4 {[%clk 0:02:55.4]} 2...
e6 {[%clk 0:02:57.5]} 3. Nf3 {[%clk 0:02:55.3]} 3... d5 {[%clk 0:02:57.7]} 4.
Nc3 {[%clk 0:02:55.3]} 4... dxc4 {[%clk 0:02:55]} 5. e3 {[%clk 0:02:54.3]} 5...
a6 {[%clk 0:02:53.8]} 6. Bxc4 {[%clk 0:02:54.3]} 6... b5 {[%clk 0:02:52]} 7. Bb3
{[%clk 0:02:53.5]} 7... Bb7 {[%clk 0:02:51.8]} 8. O-O {[%clk 0:02:54]} 8... Nbd7
{[%clk 0:02:47.6]} 9. Re1 {[%clk 0:02:54.2]} 9... Be7 {[%clk 0:02:47.1]} 10. e4
{[%clk 0:02:50.9]} 10... b4 {[%clk 0:02:41.8]} 11. e5 {[%clk 0:02:50.8]} 11...
bxc3 {[%clk 0:02:32.7]} 12. exf6 {[%clk 0:02:50.4]} 12... Bxf6 {[%clk
0:02:31.8]} 13. bxc3 {[%clk 0:02:49.8]} 13... O-O {[%clk 0:02:30.3]} 14. Ba3
{[%clk 0:02:48.6]} 14... Re8 {[%clk 0:02:27.9]} 15. Ba4 {[%clk 0:02:47.8]} 15...
Be7 {[%clk 0:01:41.5]} 16. Ne5 {[%clk 0:02:08.9]} 16... Bxa3 {[%clk 0:01:35.3]}
17. Bxd7 {[%clk 0:02:07.1]} 17... Re7 {[%clk 0:01:32.4]} 18. Bc6 {[%clk
0:02:06.5]} 18... Rb8 {[%clk 0:01:22.5]} 19. Bxb7 {[%clk 0:02:05.5]} 19... Rxb7
{[%clk 0:01:19.6]} 20. Nc6 {[%clk 0:02:05]} 20... Qe8 {[%clk 0:01:14.9]} 21.
Nxe7+ {[%clk 0:02:04.5]} 21... Bxe7 {[%clk 0:01:12.5]} 22. Rb1 {[%clk
0:02:02.4]} 22... Rb6 {[%clk 0:01:10.2]} 23. Qe2 {[%clk 0:01:53.1]} 23... Qd7
{[%clk 0:01:06.8]} 24. Rxb6 {[%clk 0:01:51.4]} 24... cxb6 {[%clk 0:01:07.1]} 25.
Qxa6 {[%clk 0:01:51.5]} 1-0

[Event "Late-Titled-Tuesday-Blitz-February-13-2024"]
[Site "Chess.com"]
[Date "2024.02.13"]
[Round "6"]
[White "Chempiblinka"]
[Black "Bryanl106"]
[Result "0-1"]
[WhiteElo "2351"]
[BlackElo "2526"]
[TimeControl "180+1"]
[EndTime "15:04:07 PST"]
[Termination "Bryanl106 won by resignation"]

1. Nf3 {[%clk 0:03:00.9]} 1... Nf6 {[%clk 0:03:00.1]} 2. c4 {[%clk 0:02:59.8]}
2... g6 {[%clk 0:03:00.7]} 3. g3 {[%clk 0:03:00.3]} 3... Bg7 {[%clk 0:03:01.6]}
4. Bg2 {[%clk 0:03:00.7]} 4... O-O {[%clk 0:03:02.4]} 5. O-O {[%clk 0:03:00.8]}
5... d6 {[%clk 0:03:03.3]} 6. d4 {[%clk 0:03:00.1]} 6... Nc6 {[%clk 0:03:03.6]}
7. Nc3 {[%clk 0:03:00.7]} 7... Bg4 {[%clk 0:03:03.8]} 8. d5 {[%clk 0:02:14.5]}
8... Na5 {[%clk 0:03:01]} 9. Nd2 {[%clk 0:02:09.8]} 9... c5 {[%clk 0:03:00.6]}
10. h3 {[%clk 0:02:02]} 10... Bd7 {[%clk 0:02:59.8]} 11. a3 {[%clk 0:01:52.8]}
11... Qc8 {[%clk 0:02:56.8]} 12. Re1 {[%clk 0:01:44.4]} 12... Bxh3 {[%clk
0:02:51]} 13. e4 {[%clk 0:01:25.8]} 13... Bxg2 {[%clk 0:02:50.1]} 14. Kxg2
{[%clk 0:01:26.7]} 14... a6 {[%clk 0:02:50]} 15. f4 {[%clk 0:01:17.1]} 15... Ng4
{[%clk 0:02:48]} 16. Qe2 {[%clk 0:01:04.3]} 16... h5 {[%clk 0:02:41.1]} 17. Nf3
{[%clk 0:01:02.3]} 17... Nb3 {[%clk 0:02:39.2]} 18. Rb1 {[%clk 0:00:56.2]} 18...
Nd4 {[%clk 0:02:37.7]} 19. Nxd4 {[%clk 0:00:50.1]} 19... cxd4 {[%clk 0:02:38.6]}
20. Nd1 {[%clk 0:00:50.5]} 20... b5 {[%clk 0:02:38.2]} 21. cxb5 {[%clk
0:00:32.5]} 21... axb5 {[%clk 0:02:39.1]} 22. Qxb5 {[%clk 0:00:32.6]} 22... Qc2+
{[%clk 0:02:37.9]} 23. Qe2 {[%clk 0:00:22.3]} 23... Qxb1 {[%clk 0:02:35.8]} 24.
b4 {[%clk 0:00:17]} 24... d3 {[%clk 0:02:34.9]} 25. Qd2 {[%clk 0:00:16.5]} 25...
Qc2 {[%clk 0:02:34.7]} 0-1

[Event "Late-Titled-Tuesday-Blitz-February-13-2024"]
[Site "Chess.com"]
[Date "2024.02.13"]
[Round "6"]
[White "karinachess1"]
[Black "Kostya26"]
[Result "1-0"]
[WhiteElo "2681"]
[BlackElo "2456"]
[TimeControl "180+1"]
[EndTime "15:04:25 PST"]
[Termination "karinachess1 won by resignation"]

1. d4 {[%clk 0:03:00.9]} 1... d5 {[%clk 0:02:57]} 2. c4 {[%clk 0:03:00.8]} 2...
e6 {[%clk 0:02:50.8]} 3. Nc3 {[%clk 0:03:00.6]} 3... Nf6 {[%clk 0:02:50.5]} 4.
cxd5 {[%clk 0:03:01]} 4... exd5 {[%clk 0:02:51.4]} 5. Bg5 {[%clk 0:03:01]} 5...
c6 {[%clk 0:02:51.6]} 6. e3 {[%clk 0:03:01.1]} 6... Be7 {[%clk 0:02:52.2]} 7.
Bd3 {[%clk 0:03:01.5]} 7... O-O {[%clk 0:02:52.4]} 8. Qc2 {[%clk 0:03:01.3]}
8... h6 {[%clk 0:02:52]} 9. Bh4 {[%clk 0:03:01.6]} 9... Re8 {[%clk 0:02:52.5]}
10. Nf3 {[%clk 0:03:01.2]} 10... Ne4 {[%clk 0:02:51.8]} 11. Bxe7 {[%clk
0:03:01]} 11... Qxe7 {[%clk 0:02:52]} 12. O-O {[%clk 0:03:01.5]} 12... Nd7
{[%clk 0:02:46.6]} 13. a3 {[%clk 0:03:00.6]} 13... f5 {[%clk 0:02:45.8]} 14. b4
{[%clk 0:02:58.5]} 14... Ndf6 {[%clk 0:02:38.2]} 15. b5 {[%clk 0:02:49.5]} 15...
Bd7 {[%clk 0:02:29.5]} 16. bxc6 {[%clk 0:02:49.3]} 16... bxc6 {[%clk 0:02:20.2]}
17. Na4 {[%clk 0:02:43.7]} 17... Rac8 {[%clk 0:02:08.8]} 18. Rac1 {[%clk
0:02:33.5]} 18... g5 {[%clk 0:01:35.7]} 19. Nc5 {[%clk 0:02:30.5]} 19... Nxc5
{[%clk 0:01:22.2]} 20. Qxc5 {[%clk 0:02:31.4]} 20... Qxc5 {[%clk 0:01:18.2]} 21.
Rxc5 {[%clk 0:02:32.3]} 21... Rb8 {[%clk 0:01:12.4]} 22. Ra5 {[%clk 0:02:26.3]}
22... Rb7 {[%clk 0:01:06.4]} 23. Ne5 {[%clk 0:02:16.8]} 23... Ne4 {[%clk
0:00:57.1]} 24. Rc1 {[%clk 0:01:54.2]} 24... Rc8 {[%clk 0:00:50.8]} 25. Ba6
{[%clk 0:01:50.3]} 25... Rb2 {[%clk 0:00:44.2]} 26. Nxd7 {[%clk 0:01:45.1]}
26... Rcb8 {[%clk 0:00:41.9]} 27. Nxb8 {[%clk 0:01:44.4]} 1-0

[Event "Late-Titled-Tuesday-Blitz-February-13-2024"]
[Site "Chess.com"]
[Date "2024.02.13"]
[Round "6"]
[White "Felix-Rose"]
[Black "wanyaland"]
[Result "0-1"]
[WhiteElo "2229"]
[BlackElo "2483"]
[TimeControl "180+1"]
[EndTime "15:04:26 PST"]
[Termination "wanyaland won by resignation"]

1. e4 {[%clk 0:03:00.1]} 1... e5 {[%clk 0:02:59.9]} 2. Nf3 {[%clk 0:02:59.7]}
2... Nc6 {[%clk 0:03:00.4]} 3. Bb5 {[%clk 0:02:59.2]} 3... a6 {[%clk 0:02:58.8]}
4. Ba4 {[%clk 0:02:59.2]} 4... Nf6 {[%clk 0:02:58.9]} 5. O-O {[%clk 0:02:59.4]}
5... b5 {[%clk 0:02:58.9]} 6. Bb3 {[%clk 0:02:59.6]} 6... Bc5 {[%clk 0:02:58.9]}
7. c3 {[%clk 0:02:59.8]} 7... d6 {[%clk 0:02:56.4]} 8. d4 {[%clk 0:02:59.2]}
8... Bb6 {[%clk 0:02:56.9]} 9. a4 {[%clk 0:02:59.1]} 9... Rb8 {[%clk 0:02:55.9]}
10. a5 {[%clk 0:02:58.4]} 10... Ba7 {[%clk 0:02:56]} 11. h3 {[%clk 0:02:56.1]}
11... h6 {[%clk 0:02:55]} 12. Be3 {[%clk 0:02:53.8]} 12... exd4 {[%clk
0:02:46.5]} 13. cxd4 {[%clk 0:02:50.8]} 13... O-O {[%clk 0:02:45.2]} 14. Nbd2
{[%clk 0:02:42.2]} 14... Nb4 {[%clk 0:02:43.6]} 15. Qb1 {[%clk 0:02:06.4]} 15...
Bb7 {[%clk 0:02:40.4]} 16. Re1 {[%clk 0:01:58.4]} 16... Re8 {[%clk 0:02:39.6]}
17. e5 {[%clk 0:01:54.3]} 17... Nfd5 {[%clk 0:02:38]} 18. exd6 {[%clk
0:01:34.5]} 18... Qxd6 {[%clk 0:02:35.3]} 19. Ne4 {[%clk 0:01:30.8]} 19... Qg6
{[%clk 0:02:28.4]} 20. Nfd2 {[%clk 0:01:13.8]} 20... Kh8 {[%clk 0:02:19.2]} 21.
Ra3 {[%clk 0:00:44]} 21... Nxe3 {[%clk 0:01:58.5]} 22. fxe3 {[%clk 0:00:35.9]}
22... Bxe4 {[%clk 0:01:56.5]} 0-1

[Event "Late-Titled-Tuesday-Blitz-February-13-2024"]
[Site "Chess.com"]
[Date "2024.02.13"]
[Round "6"]
[White "katharinareinecke"]
[Black "Nick12772"]
[Result "0-1"]
[WhiteElo "1956"]
[BlackElo "2349"]
[TimeControl "180+1"]
[EndTime "15:04:30 PST"]
[Termination "Nick12772 won by resignation"]

1. e4 {[%clk 0:03:00.9]} 1... e6 {[%clk 0:03:00.3]} 2. d4 {[%clk 0:02:59.4]}
2... d5 {[%clk 0:03:01.2]} 3. e5 {[%clk 0:02:58]} 3... c5 {[%clk 0:03:01.1]} 4.
c3 {[%clk 0:02:58.2]} 4... Bd7 {[%clk 0:03:01.4]} 5. Nf3 {[%clk 0:02:53.4]} 5...
Qb6 {[%clk 0:03:00.3]} 6. Bd3 {[%clk 0:02:32]} 6... Bb5 {[%clk 0:02:59]} 7. dxc5
{[%clk 0:02:32]} 7... Bxc5 {[%clk 0:02:58.5]} 8. b4 {[%clk 0:02:26.7]} 8... Bxd3
{[%clk 0:02:58]} 9. bxc5 {[%clk 0:02:15]} 9... Qa6 {[%clk 0:02:57.6]} 10. Be3
{[%clk 0:01:51.3]} 10... Nd7 {[%clk 0:02:47.5]} 11. Nbd2 {[%clk 0:01:46]} 11...
Ne7 {[%clk 0:02:42.2]} 12. Nb3 {[%clk 0:01:45.1]} 12... Nf5 {[%clk 0:02:41.5]}
13. Qd2 {[%clk 0:01:21.3]} 13... Nxe3 {[%clk 0:02:39.3]} 14. Qxe3 {[%clk
0:01:10.8]} 14... Bc4 {[%clk 0:02:37.2]} 15. Nfd2 {[%clk 0:01:05.3]} 15... Rc8
{[%clk 0:02:33.4]} 16. Nxc4 {[%clk 0:01:02.8]} 16... Qxc4 {[%clk 0:02:34.3]} 17.
Nd2 {[%clk 0:00:59.1]} 17... Qxc5 {[%clk 0:02:32.4]} 18. Qg3 {[%clk 0:00:52.5]}
18... Qxc3 {[%clk 0:02:29.3]} 19. O-O {[%clk 0:00:27.3]} 19... Qxg3 {[%clk
0:02:27.6]} 20. hxg3 {[%clk 0:00:26]} 20... Nxe5 {[%clk 0:02:28]} 21. Rab1
{[%clk 0:00:19.5]} 21... b6 {[%clk 0:02:27.8]} 22. Rfc1 {[%clk 0:00:18.5]} 22...
O-O {[%clk 0:02:26.3]} 23. Nb3 {[%clk 0:00:15.4]} 23... Nd3 {[%clk 0:02:21.6]}
24. Rxc8 {[%clk 0:00:13.4]} 24... Rxc8 {[%clk 0:02:22.5]} 25. Nd4 {[%clk
0:00:13.3]} 25... Rc1+ {[%clk 0:02:20.6]} 26. Rxc1 {[%clk 0:00:12.4]} 26... Nxc1
{[%clk 0:02:21.5]} 27. Nb5 {[%clk 0:00:12.7]} 27... Nxa2 {[%clk 0:02:19.8]} 28.
Nxa7 {[%clk 0:00:12.7]} 28... Nc3 {[%clk 0:02:13.8]} 0-1

[Event "Late-Titled-Tuesday-Blitz-February-13-2024"]
[Site "Chess.com"]
[Date "2024.02.13"]
[Round "6"]
[White "Canal_Showdrez"]
[Black "ChEsper99"]
[Result "0-1"]
[WhiteElo "2055"]
[BlackElo "2196"]
[TimeControl "180+1"]
[EndTime "15:04:30 PST"]
[Termination "ChEsper99 won by resignation"]

1. d4 {[%clk 0:03:00.9]} 1... Nf6 {[%clk 0:02:58.4]} 2. Nf3 {[%clk 0:03:00.4]}
2... g6 {[%clk 0:02:58.7]} 3. e3 {[%clk 0:02:59.7]} 3... Bg7 {[%clk 0:02:59.3]}
4. Bd3 {[%clk 0:02:59.8]} 4... O-O {[%clk 0:02:59.8]} 5. Nbd2 {[%clk 0:03:00]}
5... d5 {[%clk 0:03:00.2]} 6. b3 {[%clk 0:03:00.5]} 6... c6 {[%clk 0:03:00.8]}
7. Bb2 {[%clk 0:03:00.9]} 7... Bf5 {[%clk 0:03:01.5]} 8. Bxf5 {[%clk 0:02:57.2]}
8... gxf5 {[%clk 0:03:02.4]} 9. Ne5 {[%clk 0:02:53.8]} 9... Nbd7 {[%clk
0:03:01.9]} 10. O-O {[%clk 0:02:50.9]} 10... Ne4 {[%clk 0:02:59.3]} 11. f4
{[%clk 0:02:46.4]} 11... Nxe5 {[%clk 0:02:55.4]} 12. dxe5 {[%clk 0:02:42.5]}
12... e6 {[%clk 0:02:52]} 13. Nf3 {[%clk 0:02:36.7]} 13... c5 {[%clk 0:02:44.5]}
14. Ba3 {[%clk 0:02:36]} 14... Qa5 {[%clk 0:02:35]} 15. Bb2 {[%clk 0:02:32.1]}
15... Rfd8 {[%clk 0:02:33]} 16. c4 {[%clk 0:02:27.2]} 16... dxc4 {[%clk
0:02:29.3]} 17. Qc1 {[%clk 0:02:22.4]} 17... c3 {[%clk 0:02:25.3]} 18. Ba3
{[%clk 0:02:22.2]} 18... Rd3 {[%clk 0:02:22.3]} 19. Rb1 {[%clk 0:02:19.1]} 19...
Rad8 {[%clk 0:02:21.9]} 20. b4 {[%clk 0:02:17.9]} 20... cxb4 {[%clk 0:02:21.3]}
21. Bxb4 {[%clk 0:02:18.8]} 21... Qxa2 {[%clk 0:02:19.9]} 22. Nd4 {[%clk
0:02:14.7]} 22... Rd2 {[%clk 0:02:06.4]} 23. Nf3 {[%clk 0:01:51.4]} 23... Rxg2+
{[%clk 0:02:00.5]} 24. Kh1 {[%clk 0:01:51.6]} 24... Rdd2 {[%clk 0:01:44.9]} 25.
Nxd2 {[%clk 0:01:46.9]} 25... Rxd2 {[%clk 0:01:09.5]} 0-1

[Event "Late-Titled-Tuesday-Blitz-February-13-2024"]
[Site "Chess.com"]
[Date "2024.02.13"]
[Round "6"]
[White "StarkyNZ"]
[Black "rcmz"]
[Result "1-0"]
[WhiteElo "2342"]
[BlackElo "2161"]
[TimeControl "180+1"]
[EndTime "15:04:42 PST"]
[Termination "StarkyNZ won by resignation"]

1. c4 {[%clk 0:03:00.9]} 1... d6 {[%clk 0:02:59.1]} 2. Nc3 {[%clk 0:03:01.1]}
2... Nd7 {[%clk 0:02:58]} 3. g3 {[%clk 0:03:01.2]} 3... c6 {[%clk 0:02:54.9]} 4.
Bg2 {[%clk 0:03:01]} 4... h6 {[%clk 0:02:55.1]} 5. e4 {[%clk 0:03:00]} 5... Qc7
{[%clk 0:02:52.6]} 6. d4 {[%clk 0:03:00.3]} 6... g5 {[%clk 0:02:51.9]} 7. h4
{[%clk 0:03:00]} 7... gxh4 {[%clk 0:02:49.9]} 8. Rxh4 {[%clk 0:02:59.7]} 8...
Bg7 {[%clk 0:02:49.7]} 9. Nge2 {[%clk 0:02:59.3]} 9... Nf8 {[%clk 0:02:48]} 10.
Nf4 {[%clk 0:02:53.9]} 10... Ng6 {[%clk 0:02:43.1]} 11. Nxg6 {[%clk 0:02:49.5]}
11... fxg6 {[%clk 0:02:43.1]} 12. Be3 {[%clk 0:02:50]} 12... g5 {[%clk
0:02:41.9]} 13. Rh2 {[%clk 0:02:48.3]} 13... Nf6 {[%clk 0:02:37.4]} 14. f3
{[%clk 0:02:44.8]} 14... Be6 {[%clk 0:02:27.7]} 15. d5 {[%clk 0:02:41.6]} 15...
Bd7 {[%clk 0:02:21.8]} 16. Qd2 {[%clk 0:02:36.2]} 16... Qa5 {[%clk 0:02:19.7]}
17. O-O-O {[%clk 0:02:32.9]} 17... b5 {[%clk 0:02:16.1]} 18. dxc6 {[%clk
0:02:32.2]} 18... Bxc6 {[%clk 0:02:15.3]} 19. cxb5 {[%clk 0:02:30.1]} 19... Bxb5
{[%clk 0:02:13.9]} 20. Bd4 {[%clk 0:02:30.4]} 20... Rc8 {[%clk 0:02:01.9]} 21.
Kb1 {[%clk 0:02:30.5]} 21... Bc4 {[%clk 0:01:58.5]} 22. f4 {[%clk 0:02:24.4]}
22... g4 {[%clk 0:01:37.8]} 23. e5 {[%clk 0:02:23]} 23... Nd5 {[%clk 0:00:56]}
24. Bxd5 {[%clk 0:02:04.5]} 24... Bxd5 {[%clk 0:00:52]} 25. exd6 {[%clk
0:02:00.9]} 25... Bxd4 {[%clk 0:00:37.4]} 26. Qxd4 {[%clk 0:02:01.8]} 1-0

[Event "Late-Titled-Tuesday-Blitz-February-13-2024"]
[Site "Chess.com"]
[Date "2024.02.13"]
[Round "6"]
[White "AndresDelgado77"]
[Black "Perecke"]
[Result "1-0"]
[WhiteElo "2346"]
[BlackElo "2505"]
[TimeControl "180+1"]
[EndTime "15:04:51 PST"]
[Termination "AndresDelgado77 won by resignation"]

1. e4 {[%clk 0:03:00]} 1... g6 {[%clk 0:03:00.9]} 2. d4 {[%clk 0:02:59]} 2...
Bg7 {[%clk 0:03:01.8]} 3. Nf3 {[%clk 0:02:58.4]} 3... e6 {[%clk 0:03:02.2]} 4.
Nc3 {[%clk 0:02:51.9]} 4... Ne7 {[%clk 0:03:02.2]} 5. h4 {[%clk 0:02:49]} 5...
h5 {[%clk 0:03:02.1]} 6. Bg5 {[%clk 0:02:47.4]} 6... d5 {[%clk 0:03:02.1]} 7. e5
{[%clk 0:02:27.9]} 7... c5 {[%clk 0:03:02]} 8. dxc5 {[%clk 0:02:28]} 8... Nbc6
{[%clk 0:03:02.3]} 9. Nb5 {[%clk 0:02:25.4]} 9... O-O {[%clk 0:03:02.4]} 10. Bf4
{[%clk 0:02:12.7]} 10... a6 {[%clk 0:02:56.6]} 11. Nd6 {[%clk 0:01:58.5]} 11...
Qa5+ {[%clk 0:02:57.5]} 12. Qd2 {[%clk 0:01:53.7]} 12... Qxc5 {[%clk 0:02:58.4]}
13. Bd3 {[%clk 0:01:41.5]} 13... Nf5 {[%clk 0:02:48.7]} 14. Bxf5 {[%clk
0:01:38.7]} 14... exf5 {[%clk 0:02:49.6]} 15. O-O {[%clk 0:01:33.6]} 15... Nxe5
{[%clk 0:02:22.3]} 16. Nxe5 {[%clk 0:01:29.5]} 16... Qxd6 {[%clk 0:02:22.5]} 17.
Nxf7 {[%clk 0:01:22.5]} 17... Qc6 {[%clk 0:02:20]} 18. Ne5 {[%clk 0:01:18.2]}
18... Qb5 {[%clk 0:02:05.7]} 19. Nxg6 {[%clk 0:00:58.8]} 19... Re8 {[%clk
0:02:04.9]} 20. Rfe1 {[%clk 0:00:50.5]} 20... Bd7 {[%clk 0:02:05.1]} 21. Ne5
{[%clk 0:00:48.1]} 21... Be6 {[%clk 0:02:01.9]} 22. c3 {[%clk 0:00:44.6]} 22...
Rac8 {[%clk 0:01:58.2]} 23. Qd1 {[%clk 0:00:42.8]} 23... Bxe5 {[%clk 0:01:53.3]}
24. Bxe5 {[%clk 0:00:40.3]} 24... Bf7 {[%clk 0:01:53.7]} 25. Qd2 {[%clk
0:00:36.7]} 25... Kh7 {[%clk 0:01:48.6]} 26. Qg5 {[%clk 0:00:31]} 26... Bg6
{[%clk 0:01:44]} 27. Bd4 {[%clk 0:00:28.4]} 27... Rxe1+ {[%clk 0:01:42.6]} 28.
Rxe1 {[%clk 0:00:28.2]} 28... Re8 {[%clk 0:01:43.5]} 29. Re7+ {[%clk 0:00:27.9]}
1-0

[Event "Late-Titled-Tuesday-Blitz-February-13-2024"]
[Site "Chess.com"]
[Date "2024.02.13"]
[Round "6"]
[White "Rud_Makarian"]
[Black "Alexei_Gubajdullin"]
[Result "1-0"]
[WhiteElo "3030"]
[BlackElo "2636"]
[TimeControl "180+1"]
[EndTime "15:04:53 PST"]
[Termination "Rud_Makarian won by resignation"]

1. Nf3 {[%clk 0:02:52.1]} 1... Nf6 {[%clk 0:02:58.8]} 2. g3 {[%clk 0:02:53]}
2... g6 {[%clk 0:02:58.5]} 3. Bg2 {[%clk 0:02:53.9]} 3... Bg7 {[%clk 0:02:58.7]}
4. O-O {[%clk 0:02:54.8]} 4... O-O {[%clk 0:02:58.7]} 5. c4 {[%clk 0:02:55.7]}
5... d6 {[%clk 0:02:58.7]} 6. Nc3 {[%clk 0:02:56.6]} 6... Nbd7 {[%clk
0:02:58.5]} 7. d3 {[%clk 0:02:57.5]} 7... e5 {[%clk 0:02:55.5]} 8. Rb1 {[%clk
0:02:57.4]} 8... a5 {[%clk 0:02:54.3]} 9. a3 {[%clk 0:02:57.7]} 9... h6 {[%clk
0:02:53.5]} 10. b4 {[%clk 0:02:57.4]} 10... axb4 {[%clk 0:02:53.3]} 11. axb4
{[%clk 0:02:56.5]} 11... Nh7 {[%clk 0:02:46]} 12. Bb2 {[%clk 0:02:56.1]} 12...
Ng5 {[%clk 0:02:44.6]} 13. Ra1 {[%clk 0:02:55.7]} 13... Rb8 {[%clk 0:02:43.9]}
14. Ra7 {[%clk 0:02:54.8]} 14... Nf6 {[%clk 0:02:38]} 15. Nxg5 {[%clk
0:02:47.3]} 15... hxg5 {[%clk 0:02:37.6]} 16. b5 {[%clk 0:02:48]} 16... g4
{[%clk 0:02:36.7]} 17. Qc2 {[%clk 0:02:25.8]} 17... Nh7 {[%clk 0:02:35.9]} 18.
Nd5 {[%clk 0:02:23.7]} 18... Ng5 {[%clk 0:02:30.6]} 19. c5 {[%clk 0:02:18.1]}
19... Be6 {[%clk 0:02:24.8]} 20. c6 {[%clk 0:02:08.8]} 20... Nf3+ {[%clk
0:02:10.3]} 21. exf3 {[%clk 0:01:59.8]} 21... Bxd5 {[%clk 0:02:09.4]} 22. fxg4
{[%clk 0:01:57.9]} 22... Bxg2 {[%clk 0:02:08.3]} 23. Kxg2 {[%clk 0:01:56.9]}
23... bxc6 {[%clk 0:02:07.6]} 24. Qxc6 {[%clk 0:01:57]} 24... Rc8 {[%clk
0:02:01]} 25. Rc1 {[%clk 0:01:54.6]} 25... Qg5 {[%clk 0:01:51.5]} 26. b6 {[%clk
0:01:47.4]} 26... cxb6 {[%clk 0:01:48.4]} 27. Qxc8 {[%clk 0:01:47.2]} 27... Rxc8
{[%clk 0:01:48.1]} 28. Rxc8+ {[%clk 0:01:48.1]} 28... Kh7 {[%clk 0:01:33]} 29.
Rxf7 {[%clk 0:01:46.3]} 29... Qd2 {[%clk 0:01:24.2]} 30. Rcc7 {[%clk 0:01:29.8]}
30... Qxb2 {[%clk 0:00:58.4]} 31. Rxg7+ {[%clk 0:01:28]} 31... Kh6 {[%clk
0:00:57.8]} 32. h4 {[%clk 0:01:28.2]} 1-0

[Event "Late-Titled-Tuesday-Blitz-February-13-2024"]
[Site "Chess.com"]
[Date "2024.02.13"]
[Round "6"]
[White "cthulhuuu"]
[Black "gahryman"]
[Result "0-1"]
[WhiteElo "2467"]
[BlackElo "2689"]
[TimeControl "180+1"]
[EndTime "15:04:54 PST"]
[Termination "gahryman won by resignation"]

1. e4 {[%clk 0:02:59.8]} 1... c5 {[%clk 0:02:59.1]} 2. Nf3 {[%clk 0:03:00]} 2...
Nc6 {[%clk 0:02:59.1]} 3. g3 {[%clk 0:03:00.4]} 3... Nf6 {[%clk 0:02:56]} 4. d3
{[%clk 0:03:00.9]} 4... d5 {[%clk 0:02:54.1]} 5. Nbd2 {[%clk 0:02:59.3]} 5...
Bg4 {[%clk 0:02:53.5]} 6. h3 {[%clk 0:02:58.3]} 6... Bh5 {[%clk 0:02:48.9]} 7.
Bg2 {[%clk 0:02:50.6]} 7... e6 {[%clk 0:02:48.6]} 8. O-O {[%clk 0:02:49.7]} 8...
Be7 {[%clk 0:02:48.6]} 9. g4 {[%clk 0:02:49.1]} 9... Bg6 {[%clk 0:02:48.2]} 10.
e5 {[%clk 0:02:48.1]} 10... Nd7 {[%clk 0:02:47.8]} 11. Re1 {[%clk 0:02:48.4]}
11... h5 {[%clk 0:02:46.5]} 12. c3 {[%clk 0:02:44.3]} 12... hxg4 {[%clk
0:02:45.1]} 13. hxg4 {[%clk 0:02:44.2]} 13... Bxd3 {[%clk 0:02:45.8]} 14. c4
{[%clk 0:02:36]} 14... d4 {[%clk 0:02:37.9]} 15. Ne4 {[%clk 0:02:33.1]} 15...
Bxe4 {[%clk 0:02:36.3]} 16. Rxe4 {[%clk 0:02:34]} 16... Qc7 {[%clk 0:02:37.1]}
17. Bf4 {[%clk 0:02:31.7]} 17... g5 {[%clk 0:02:26.4]} 18. Bg3 {[%clk
0:02:23.7]} 18... O-O-O {[%clk 0:02:25.6]} 19. Ne1 {[%clk 0:02:22.6]} 19... Nf8
{[%clk 0:02:21.4]} 20. Nd3 {[%clk 0:02:21.5]} 20... Ng6 {[%clk 0:02:21.6]} 21.
a3 {[%clk 0:02:16.7]} 21... Nh4 {[%clk 0:02:17.8]} 22. Bh1 {[%clk 0:02:15.3]}
22... Rh7 {[%clk 0:02:16.6]} 23. b4 {[%clk 0:02:14.6]} 23... Rdh8 {[%clk
0:02:16.1]} 24. Bxh4 {[%clk 0:01:59.6]} 24... Rxh4 {[%clk 0:02:14.9]} 25. Bg2
{[%clk 0:01:59.5]} 25... f5 {[%clk 0:02:09.4]} 26. exf6 {[%clk 0:01:49]} 26...
Rh1+ {[%clk 0:02:05.4]} 27. Bxh1 {[%clk 0:01:43.6]} 27... Qh2+ {[%clk
0:02:04.7]} 28. Kf1 {[%clk 0:01:38]} 28... Qxh1+ {[%clk 0:02:05.6]} 29. Ke2
{[%clk 0:01:37]} 29... Qxe4+ {[%clk 0:02:06.2]} 30. Kd2 {[%clk 0:01:36.7]} 30...
Bxf6 {[%clk 0:01:49.7]} 31. Qe2 {[%clk 0:01:09.7]} 31... Qxe2+ {[%clk
0:01:40.6]} 32. Kxe2 {[%clk 0:01:10.6]} 32... Ne5 {[%clk 0:01:40]} 33. Nxc5
{[%clk 0:01:07.9]} 33... d3+ {[%clk 0:01:39.3]} 0-1